[Event "-chT Youth Countries 2019"]
[Site "Wuerzburg"]
[Date "2019.10.06"]
[Round "7.4"]
[White "Franke, Luca"]
[Black "Bakiev, Diyor"]
[Result "0-1"]
[ECO "A61"]
[WhiteElo "1872"]
[BlackElo "2088"]
[Annotator "NA"]
[PlyCount "78"]
[EventDate "2019.10.02"]
[EventType "team-tourn"]
[EventRounds "7"]
[EventCountry "GER"]
[SourceTitle "playchess.com"]
[Source "ChessBase"]
[SourceQuality "1"]
[WhiteTeam "Team Süd"]
[BlackTeam "Hessen"]
[TimeControl "40/5400+30:1800+30"]

1. d4 {[%emt 0:00:00]} Nf6 {[%emt 0:00:00]} 2. Nf3 {[%emt 0:00:00]} e6 {[%emt 0:00:15]} 3. c4 {[%emt 0:00:00]} c5 {[%emt 0:00:16]} 4. d5 {[%emt 0:00:05]} exd5 {[%emt 0:00:05]} 5. cxd5 {[%emt 0:00:11]} d6 {[%emt 0:00:18]} 6. Nc3 {[%emt 0:00:25]} g6 {[%emt 0:00:12]} 7. e4 {[%emt 0:00:32]} Bg7 {[%emt 0:00:10]} 8. Qa4+ {[%emt 0:00:17]} Bd7 {[%emt 0:01:03]} 9. Qb3 {[%emt 0:00:12]} Qc7 {[%emt 0:00:58]} 10. Bf4 {[%emt 0:00:12]} O-O {[%emt 0:00:55]} 11. Be2 {[%emt 0:01:11] unterminated} Nh5 {[%emt 0:04:26]} 12. Be3 {[%emt 0:00:56] unterminated} Bg4 $14 {[%emt 0:10:32]} 13. O-O {[%emt 0:02:08]} a6 {[%emt 0:02:36]} 14. a4 {[%emt 0:00:32]} Nd7 {[%emt 0:02:03]} 15. h3 {[%emt 0:00:50]} Bxf3 {[%emt 0:00:17]} 16. Bxf3 {[%emt 0:00:08]} Nhf6 {[%emt 0:01:28]} 17. Be2 {[%emt 0:16:51]} Rfe8 {[%emt 0:02:42]} 18. Qc2 {[%emt 0:01:05]} Rab8 {[%emt 0:12:10]} 19. b3 {[%emt 0:10:15]} Qa5 {[%emt 0:13:54]} 20. Bd2 {[%emt 0:08:46]} Qb4 {[%emt 0:04:18]} 21. Bc4 {[%emt 0:00:17]} Qb6 {[%emt 0:04:17]} 22. Be3 {[%emt 0:03:36]} Qc7 {[%emt 0:05:18]} 23. Be2 {[%emt 0:00:24]} Ne5 {[%emt 0:08:55]} 24. f4 {[%emt 0:09:30]} Ned7 {[%emt 0:01:01]} 25. Bd2 {[%emt 0:16:48]} c4 {[%emt 0:15:58]} 26. Bxc4 {[%emt 0:10:29]} b5 {[%emt 0:00:24]} 27. axb5 {[%emt 0:04:34]} axb5 {[%emt 0:00:04]} 28. Bd3 {[%emt 0:00:42]} b4 {[%emt 0:00:40]} 29. Ne2 {[%emt 0:01:55]} Qxc2 {[%emt 0:04:22]} 30. Bxc2 {[%emt 0:00:11]} Nxe4 {[%emt 0:00:53]} 31. Rad1 {[%emt 0:02:24]} Ndc5 {[%emt 0:01:39]} 32. Rf3 {[%emt 0:02:11]} Nxd2 {[%emt 0:02:16]} 33. Rxd2 {[%emt 0:02:23]} Ne4 {[%emt 0:00:53]} 34. Rdd3 {[%emt 0:03:19]} Rbc8 {[%emt 0:00:51]} 35. Bd1 {[%emt 0:01:13]} Nc3 {[%emt 0:00:30]} 36. Nxc3 {[%emt 0:01:01]} bxc3 {[%emt 0:00:02]} 37. Bc2 {[%emt 0:01:10]} Re2 {[%emt 0:00:15]} 38. Rf2 {[%emt 0:01:37]} Re1+ {[%emt 0:01:12]} 39. Kh2 {[%emt 0:00:00]} Rce8 {normal} 0-1

[Event "-chT Youth Countries 2019"]
[Site "Wuerzburg"]
[Date "2019.10.06"]
[Round "7.4"]
[White "Jacoby, Angelina"]
[Black "Muller, Magnus"]
[Result "0-1"]
[ECO "A45"]
[WhiteElo "1635"]
[BlackElo "1478"]
[Annotator "NA RC"]
[PlyCount "46"]
[EventDate "2019.10.02"]
[EventType "team-tourn"]
[EventRounds "7"]
[EventCountry "GER"]
[SourceTitle "playchess.com"]
[Source "ChessBase"]
[SourceQuality "1"]
[WhiteTeam "Brandenburg/Berlin"]
[BlackTeam "Thüringen"]
[TimeControl "40/5400+30:1800+30"]

1. d4 {[%emt 0:00:00]} Nf6 {[%emt 0:00:00]} 2. Bf4 {[%emt 0:00:00]} d5 {[%emt 0:00:00]} 3. e3 {[%emt 0:00:00]} c5 {[%emt 0:00:01]} 4. c3 {[%emt 0:01:09]} Nc6 {[%emt 0:00:03]} 5. Nf3 {[%emt 0:00:21]} Qb6 {[%emt 0:00:07]} 6. Qb3 {[%emt 0:02:01]} c4 {[%emt 0:00:06]} 7. Qxb6 {[%emt 0:01:54]} axb6 {[%emt 0:00:05]} 8. Na3 {[%emt 0:03:10]} e5 {[%emt 0:00:06]} 9. dxe5 {[%emt 0:03:32]} Bxa3 {[%emt 0:00:13]} 10. bxa3 {[%emt 0:01:09]} Ne4 {[%emt 0:00:07]} 11. Rc1 {[%emt 0:00:45]} Rxa3 {[%emt 0:00:27]} 12. Nd4 {[%emt 0:14:18]} Nxc3 {[%emt 0:02:14]} 13. Rc2 {[%emt 0:01:54]} Nxd4 {[%emt 0:00:35]} 14. exd4 {[%emt 0:00:20]} Bf5 {[%emt 0:00:05]} 15. Rb2 {[%emt 0:00:40]} Rxa2 {[%emt 0:03:44]} 16. Rxa2 {[%emt 0:02:30]} Nxa2 {[%emt 0:00:06]} 17. Kd2 {[%emt 0:00:07]} b5 {[%emt 0:00:53]} 18. g3 {[%emt 0:01:06]} b4 {[%emt 0:00:05]} 19. Bg2 {[%emt 0:00:29]} Be6 {[%emt 0:00:26]} 20. Be3 {[%emt 0:01:43]} b3 {[%emt 0:00:30]} 21. f3 {[%emt 0:02:19]} c3+ {[%emt 0:00:33]} 22. Ke2 {[%emt 0:00:31]} c2 {[%emt 0:00:22]} 23. Kd3 {[%emt 0:01:39]} Bf5+ {[%emt 0:00:06] normal} 0-1

[Event "-chT Youth Countries 2019"]
[Site "Wuerzburg"]
[Date "2019.10.06"]
[Round "7.5"]
[White "Haack, Kevin"]
[Black "Lederer, Leia"]
[Result "1/2-1/2"]
[ECO "A38"]
[WhiteElo "2044"]
[BlackElo "1750"]
[Annotator "NA"]
[PlyCount "121"]
[EventDate "2019.10.02"]
[EventType "team-tourn"]
[EventRounds "7"]
[EventCountry "GER"]
[SourceTitle "playchess.com"]
[Source "ChessBase"]
[SourceQuality "1"]
[WhiteTeam "Hessen"]
[BlackTeam "Team Süd"]
[TimeControl "40/5400+30:1800+30"]

1. c4 {[%emt 0:00:00]} c5 {[%emt 0:00:00]} 2. Nc3 {[%emt 0:00:00]} Nc6 {[%emt 0:00:14]} 3. Nf3 {[%emt 0:00:03]} Nf6 {[%emt 0:00:21]} 4. g3 {[%emt 0:00:31]} g6 {[%emt 0:00:32] unterminated} 5. Bg2 {[%emt 0:01:04]} Bg7 {[%emt 0:00:05]} 6. a3 {[%emt 0:00:48]} d6 {[%emt 0:01:22]} 7. Rb1 {[%emt 0:01:43]} a5 {[%emt 0:04:22]} 8. O-O {[%emt 0:00:38]} O-O {[%emt 0:04:38]} 9. d4 {[%emt 0:05:26] A38: Symmetrical English vs ...g6: 4 Bg2 Bg7 5 Nf3 Nf6} (9. d3 Bd7 10. Ne1 Ne8 11. Nc2 Nc7 12. Bd2 Rb8 13. b4 axb4 14. axb4 Nxb4 15. Nxb4 cxb4 16. Rxb4 b5 17. cxb5 Nxb5 18. Nxb5 Rxb5 19. Rxb5 Bxb5 20. Qb3 Bd7 21. Qb7 Qc8 22. Qa7 Rd8 23. Bg5 Bf6 24. Bxf6 exf6 {1-0 (89) Kovalenko,I (2684)-Borisek,J (2565) chess.com INT 2017}) 9... Bf5 {[%emt 0:09:01]} 10. Ra1 {[%emt 0:00:45]} cxd4 {[%emt 0:04:45]} 11. Nxd4 {[%emt 0:01:18]} Nxd4 {[%emt 0:05:09]} 12. Qxd4 {[%emt 0:00:06]} Ne4 {[%emt 0:01:30]} 13. Qe3 {[%emt 0:03:23]} Nxc3 {[%emt 0:01:46]} 14. bxc3 {[%emt 0:00:20]} Qc7 $146 {[%emt 0:06:30]} ({Predecessor:} 14... Rc8 15. Bxb7 Rxc4 16. Bd2 Qc7 {0-1 (59) Yang,K-Tinica,G (1932) Montreal 2019}) 15. Bd2 {[%emt 0:07:50]} Rab8 {[%emt 0:07:51]} 16. Rac1 {[%emt 0:09:33]} Rfe8 {[%emt 0:03:01]} 17. Qf4 {[%emt 0:13:52]} Be5 {[%emt 0:02:04]} 18. Qh4 {[%emt 0:00:08]} Bf6 {[%emt 0:00:22]} 19. Qf4 {[%emt 0:00:33]} e5 {[%emt 0:00:19] unterminated} 20. Qf3 {[%emt 0:04:01] unterminated} e4 {[%emt 0:03:22] unterminated} 21. Qe3 {[%emt 0:06:24] unterminated} Qxc4 {[%emt 0:02:14]} 22. Qb6 {[%emt 0:00:52]} Qxe2 {[%emt 0:04:55]} 23. Be3 {[%emt 0:00:46]} Be5 {[%emt 0:08:50]} 24. Qxa5 {[%emt 0:00:53]} Rec8 {[%emt 0:03:31]} 25. Qb4 {[%emt 0:06:36]} Qc4 {[%emt 0:05:30]} 26. Rfd1 {[%emt 0:05:30]} Qxb4 {[%emt 0:07:57]} 27. cxb4 {[%emt 0:00:07]} Rxc1 {[%emt 0:00:22]} 28. Rxc1 {[%emt 0:00:36]} Bb2 {[%emt 0:01:07]} 29. Rb1 {[%emt 0:01:30]} Bxa3 {[%emt 0:00:16]} 30. g4 {[%emt 0:01:35]} Bxg4 {[%emt 0:01:04]} 31. Bxe4 {[%emt 0:00:12]} Bf5 {[%emt 0:01:15]} 32. Bxf5 {[%emt 0:02:31]} gxf5 {[%emt 0:00:05]} 33. Rb3 {[%emt 0:04:41]} Ra8 {[%emt 0:00:51]} 34. Bh6 {[%emt 0:01:54]} Kh8 {[%emt 0:03:15]} 35. Bf4 {[%emt 0:01:14]} Ra6 {[%emt 0:00:29]} 36. Kf1 {[%emt 0:02:18]} Kg7 {[%emt 0:00:42]} 37. Ke2 {[%emt 0:00:16]} Kf6 {[%emt 0:00:26]} 38. Kd3 {[%emt 0:01:02]} Ke6 39. Kd4 {[%emt 0:00:59]} f6 {[%emt 0:03:59]} 40. Bd2 {[%emt 0:01:17] unterminated} h5 {[%emt 0:05:12] unterminated} 41. Rh3 $2 {[%emt 0:23:58] unterminated} (41. Re3+ $11 {and White has nothing to worry.} Kf7 42. Rb3) 41... Bb2+ {[%emt 0:06:54]} 42. Kc4 {[%emt 0:00:39] unterminated} Rc6+ {[%emt 0:04:31]} (42... d5+ $19 {and Black stays clearly on top.} 43. Kb5 Rc6 44. Re3+ Kd6) 43. Kb3 {[%emt 0:03:09] unterminated} Bd4 {[%emt 0:01:20] unterminated} 44. f3 {[%emt 0:00:56]} d5 {[%emt 0:04:46]} 45. Rxh5 {[%emt 0:00:59]} Bg1 {[%emt 0:03:39]} 46. h4 {[%emt 0:01:28]} d4 {[%emt 0:00:27]} 47. Rh8 {[%emt 0:01:06]} Rc7 {[%emt 0:00:54] unterminated} 48. h5 {[%emt 0:08:25] unterminated} Be3 {[%emt 0:07:44] unterminated} 49. Bxe3 {[%emt 0:08:55] unterminated} Rc3+ $2 {[%emt 0:01:55]} (49... dxe3 $19 50. Re8+ Re7) 50. Kb2 {[%emt 0:01:14]} Rxe3 {unterminated} 51. h6 Kf7 {[%emt 0:01:14]} ({Wrong is} 51... Rxf3 $2 52. Re8+ Kd5 53. h7 $18) 52. Rb8 $11 {[%emt 0:04:18]} Kg6 {[%emt 0:00:46]} 53. Rxb7 {[%emt 0:00:13]} Kxh6 {[%emt 0:00:05]} 54. Rd7 {[%emt 0:00:35]} d3 {[%emt 0:03:52]} 55. Kc3 {[%emt 0:00:57]} d2+ {[%emt 0:00:34]} 56. Kxd2 {[%emt 0:00:24]} Rb3 {[%emt 0:00:35]} 57. Rd4 {[%emt 0:04:19]} Rxf3 {[%emt 0:00:51]} 58. Rd3 {[%emt 0:00:39]} Rf4 {[%emt 0:00:37]} 59. Rb3 {[%emt 0:00:14]} Rd4+ {[%emt 0:00:17]} 60. Ke3 {[%emt 0:00:15]} Re4+ {[%emt 0:00:30] unterminated} 61. Kf3 {[%emt 0:00:15] normal} 1/2-1/2

[Event "-chT Youth Countries 2019"]
[Site "Wuerzburg"]
[Date "2019.10.06"]
[Round "7.5"]
[White "Arnhold, Steffi"]
[Black "Reitz, Theresa"]
[Result "1-0"]
[ECO "B42"]
[WhiteElo "2042"]
[BlackElo "1935"]
[Annotator "NA"]
[PlyCount "69"]
[EventDate "2019.10.02"]
[EventType "team-tourn"]
[EventRounds "7"]
[EventCountry "GER"]
[SourceTitle "playchess.com"]
[Source "ChessBase"]
[SourceQuality "1"]
[WhiteTeam "Sachsen"]
[BlackTeam "Rheinland-Pfalz"]
[TimeControl "40/5400+30:1800+30"]

1. e4 {[%emt 0:00:00]} c5 {[%emt 0:00:00]} 2. Nf3 {[%emt 0:00:00]} e6 {[%emt 0:00:00]} 3. d4 {[%emt 0:00:00]} cxd4 {[%emt 0:00:00]} 4. Nxd4 {[%emt 0:00:00]} a6 {[%emt 0:00:00]} 5. Bd3 {[%emt 0:00:11]} Qc7 {[%emt 0:00:07]} 6. O-O {[%emt 0:00:48]} Nf6 {[%emt 0:00:25]} 7. Nc3 {[%emt 0:00:19]} Bc5 {[%emt 0:00:15]} 8. Nb3 {[%emt 0:04:11]} Ba7 {[%emt 0:00:11]} 9. Qe2 {[%emt 0:01:27] B43: Sicilian: Kan Variation: 5 Nc3} Nc6 {[%emt 0:00:28] unterminated} 10. Kh1 {[%emt 0:06:33]} h5 {[%emt 0:01:25] unterminated} 11. f4 {[%emt 0:03:45]} d6 {[%emt 0:03:01]} 12. Be3 {[%emt 0:08:25]} Bxe3 {[%emt 0:00:11]} 13. Qxe3 {[%emt 0:00:05]} Bd7 {[%emt 0:00:33] unterminated [#] unterminated} 14. Be2 $146 {[%emt 0:19:39] unterminated} ({Predecessor:} 14. Rae1 O-O-O 15. Na4 Kb8 16. Nb6 Be8 {0-1 (34) Kadric,D (2543)-Caruana,F (2827) Batumi 2018}) 14... O-O-O {[%emt 0:08:51] unterminated} 15. Na4 {[%emt 0:06:05]} ({White should try} 15. Qg3 $11) 15... Kb8 {[%emt 0:01:03] unterminated} 16. Nb6 {[%emt 0:01:32] unterminated} Be8 {[%emt 0:05:24] unterminated} 17. c3 {[%emt 0:09:00] unterminated} h4 {[%emt 0:03:47] unterminated} 18. Rad1 {[%emt 0:03:33] unterminated} Nxe4 {[%emt 0:05:38] unterminated} 19. Bf3 {[%emt 0:07:11] unterminated} f5 {[%emt 0:08:16] unterminated} 20. c4 {[%emt 0:07:18] unterminated} (20. Nc4 $142) 20... Bh5 {[%emt 0:06:03] unterminated} 21. Rc1 {[%emt 0:07:26] unterminated} Bxf3 {[%emt 0:21:25]} 22. gxf3 {[%emt 0:00:23] unterminated [#] unterminated} Nc5 $2 {[%emt 0:05:39]} (22... Ng3+ $1 $19 {[%mdl 512]} 23. Kg1 (23. hxg3 $2 hxg3+ 24. Kg2 Rh2+ 25. Kg1 Rdh8 $19) 23... Nxf1 24. Kxf1 d5 25. cxd5 exd5) 23. Nxc5 {[%emt 0:00:11]} dxc5 {[%emt 0:00:06] unterminated} 24. Na4 {[%emt 0:04:55] unterminated} Nd4 {[%emt 0:20:13]} 25. Rcd1 {[%emt 0:01:53] unterminated} h3 {[%emt 0:04:27] unterminated} 26. b4 $19 {[%emt 0:04:08]} Qc6 {[%emt 0:02:19]} 27. Nxc5 {[%emt 0:00:14]} Nxf3 {[%emt 0:01:09]} 28. b5 {[%emt 0:00:04]} Rxd1 {[%emt 0:01:54]} 29. Rxd1 {[%emt 0:00:04]} axb5 {[%emt 0:00:59]} 30. cxb5 {[%emt 0:00:04]} Qxb5 {[%emt 0:00:36]} 31. Nd7+ {[%emt 0:00:20]} Ka8 {[%emt 0:00:27]} 32. Qxf3 {[%emt 0:00:32]} Rd8 {[%emt 0:00:36]} 33. Qa3+ {[%emt 0:00:19]} Qa6 {[%emt 0:00:17]} 34. Nb6+ {[%emt 0:00:05]} Ka7 {[%emt 0:00:06]} 35. Qxa6+ {[%emt 0:00:05] normal} 1-0

[Event "-chT Youth Countries 2019"]
[Site "Wuerzburg"]
[Date "2019.10.06"]
[Round "7.5"]
[White "Nguyen, Ha Thanh"]
[Black "Schiewe, Nadin"]
[Result "1/2-1/2"]
[ECO "B13"]
[WhiteElo "1998"]
[BlackElo "1593"]
[Annotator "NA"]
[PlyCount "65"]
[EventDate "2019.10.02"]
[EventType "team-tourn"]
[EventRounds "7"]
[EventCountry "GER"]
[SourceTitle "playchess.com"]
[Source "ChessBase"]
[SourceQuality "1"]
[WhiteTeam "Thüringen"]
[BlackTeam "Brandenburg/Berlin"]
[TimeControl "40/5400+30:1800+30"]

1. e4 {[%emt 0:00:00]} c6 {[%emt 0:00:00]} 2. d4 {[%emt 0:00:00]} d5 {[%emt 0:00:00]} 3. exd5 {[%emt 0:00:00]} cxd5 {[%emt 0:00:03]} 4. c4 {[%emt 0:00:17]} Nf6 {[%emt 0:00:34]} 5. Nc3 {[%emt 0:00:48] unterminated} Nc6 $11 {[%emt 0:01:14]} 6. h3 {[%emt 0:10:25]} Bf5 {[%emt 0:08:31]} 7. Nf3 {[%emt 0:01:59]} e6 {[%emt 0:02:36]} 8. a3 {[%emt 0:01:19]} a6 {[%emt 0:07:50]} 9. Be2 {[%emt 0:03:09]} h6 {[%emt 0:02:50]} 10. O-O {[%emt 0:12:44]} Be7 {[%emt 0:04:01]} 11. Be3 {[%emt 0:02:48]} Rc8 {[%emt 0:06:34]} 12. c5 {[%emt 0:09:53]} Ne4 {[%emt 0:10:30]} 13. Na4 {[%emt 0:08:31]} Bg5 {[%emt 0:05:46]} 14. Qc1 {[%emt 0:06:31]} Na5 {[%emt 0:06:05]} 15. Bxg5 {[%emt 0:03:20]} hxg5 {[%emt 0:00:51]} 16. Qe3 {[%emt 0:01:08]} g4 {[%emt 0:02:29]} 17. hxg4 {[%emt 0:01:39]} Bxg4 {[%emt 0:01:11]} 18. Rfd1 {[%emt 0:03:46]} Bxf3 {[%emt 0:04:43]} 19. Bxf3 {[%emt 0:00:38]} Qh4 {[%emt 0:02:11]} 20. Kf1 {[%emt 0:06:53]} Nc4 {[%emt 0:04:34]} 21. Qe1 {[%emt 0:00:42]} Qf4 {[%emt 0:02:50]} 22. Ke2 {[%emt 0:00:22]} Ng3+ {[%emt 0:01:53]} 23. Kd3 {[%emt 0:01:24]} Qf5+ {[%emt 0:00:36]} 24. Kc3 {[%emt 0:01:33]} Rh1 {[%emt 0:01:11]} 25. Qxh1 Nxh1 {[%emt 0:00:09]} 26. Rxh1 {[%emt 0:00:17]} Qf4 {[%emt 0:02:33]} 27. Rad1 {[%emt 0:00:43]} b5 {[%emt 0:02:52]} 28. b3 {[%emt 0:00:44]} bxa4 {[%emt 0:04:13]} 29. bxc4 {[%emt 0:00:41]} dxc4 {[%emt 0:00:21]} 30. Kxc4 {[%emt 0:00:27]} Kd7 {[%emt 0:00:31]} 31. Rb1 {[%emt 0:05:59]} Rb8 {[%emt 0:01:47] normal} 32. c6+ {[%emt 0:03:57]} Ke7 {[%emt 0:00:26]} 33. Rb7+ {[%emt 0:01:21] normal} 1/2-1/2

[Event "-chT Youth Countries 2019"]
[Site "Wuerzburg"]
[Date "2019.10.06"]
[Round "7.5"]
[White "Hetzner, Hannes"]
[Black "Bashylina, Luisa"]
[Result "1-0"]
[ECO "C06"]
[WhiteElo "1996"]
[BlackElo "1933"]
[Annotator "NA"]
[PlyCount "119"]
[EventDate "2019.10.02"]
[EventType "team-tourn"]
[EventRounds "7"]
[EventCountry "GER"]
[SourceTitle "playchess.com"]
[Source "ChessBase"]
[SourceQuality "1"]
[WhiteTeam "Bayern 1"]
[BlackTeam "Nordrhein-Westfalen"]
[TimeControl "40/5400+30:1800+30"]

1. e4 {[%emt 0:00:00]} e6 {[%emt 0:00:00]} 2. d4 {[%emt 0:00:00]} d5 {[%emt 0:00:00]} 3. Nd2 {[%emt 0:00:06]} Nf6 {[%emt 0:00:00]} 4. e5 {[%emt 0:00:06]} Nfd7 {[%emt 0:00:00]} 5. Bd3 {[%emt 0:00:15]} c5 {[%emt 0:00:12]} 6. c3 {[%emt 0:00:07]} Nc6 {[%emt 0:00:02]} 7. Ne2 {[%emt 0:00:06]} cxd4 {[%emt 0:00:08]} 8. cxd4 {[%emt 0:00:08]} f6 {[%emt 0:00:10]} 9. exf6 {[%emt 0:00:06]} Nxf6 {[%emt 0:00:03]} 10. O-O {[%emt 0:00:11]} Bd6 {[%emt 0:00:08]} 11. Nf3 {[%emt 0:00:25]} Qc7 {[%emt 0:00:12]} 12. h3 {[%emt 0:01:51]} O-O {[%emt 0:00:18]} 13. Be3 {[%emt 0:01:30]} Bd7 {[%emt 0:01:41] unterminated} 14. Nc3 {[%emt 0:01:18] unterminated} a6 {[%emt 0:00:38]} 15. Re1 {[%emt 0:00:47]} Rae8 {[%emt 0:01:55] unterminated} 16. Rc1 {[%emt 0:01:46] unterminated} Qb8 {[%emt 0:07:14] unterminated} 17. Bb1 {[%emt 0:08:51]} Re7 {[%emt 0:03:37] unterminated} 18. a3 {[%emt 0:05:36]} Be8 {[%emt 0:03:33] unterminated} 19. Nh4 {[%emt 0:13:48] unterminated} Bf4 {[%emt 0:08:12] unterminated} 20. Qd3 {[%emt 0:08:06] unterminated} g5 {[%emt 0:05:23] unterminated} 21. Nf3 {[%emt 0:08:10] unterminated} Bg6 {[%emt 0:09:31]} 22. Qd2 {[%emt 0:02:35] unterminated} Bxb1 {[%emt 0:04:44] unterminated} 23. Rxb1 {[%emt 0:02:15]} Rg7 {[%emt 0:06:19]} 24. Nxg5 {[%emt 0:09:19]} Bxg5 {[%emt 0:00:57]} 25. Bxg5 {[%emt 0:00:12]} Nxd4 {[%emt 0:00:41]} 26. Qxd4 {[%emt 0:00:32]} Rxg5 {[%emt 0:00:23]} 27. Qe3 {[%emt 0:04:24]} Rg6 {[%emt 0:01:56]} 28. Qxe6+ {[%emt 0:00:11]} Kh8 {[%emt 0:00:43]} 29. Qe5 {[%emt 0:09:30]} Qc8 {[%emt 0:02:03]} 30. Kh1 {[%emt 0:08:26]} Re8 {[%emt 0:05:14]} 31. Qd4 {[%emt 0:04:51]} Reg8 {[%emt 0:03:18]} 32. Re3 {[%emt 0:03:42]} Qf5 {[%emt 0:04:19]} 33. Rf3 {[%emt 0:01:36]} Qe6 {[%emt 0:04:12]} 34. Rd1 {[%emt 0:01:08]} Rd8 {[%emt 0:05:32]} 35. Qf4 {[%emt 0:01:29]} Rdg8 {[%emt 0:08:40]} 36. Qd4 {[%emt 0:01:56]} Rd8 {[%emt 0:00:19]} 37. Re3 {[%emt 0:00:46] unterminated} Qd6 {[%emt 0:04:20]} 38. Ne2 {[%emt 0:00:49] unterminated} Kg8 {[%emt 0:07:25]} 39. Ng3 {[%emt 0:01:21] unterminated} Qd7 {[%emt 0:02:03]} 40. Rde1 {[%emt 0:00:40]} Rc8 $2 {[%emt 0:03:21] unterminated} (40... Ne4 41. Nxe4 dxe4) 41. Re6 {[%emt 0:07:22]} Rc1 {[%emt 0:02:52] unterminated} 42. Qe3 {[%emt 0:02:29]} ({Don't play} 42. Rxc1 Qxe6 43. Rc7 Rg7 $18) 42... Rxe1+ {[%emt 0:02:26]} 43. Qxe1 {[%emt 0:00:07] unterminated} Kf7 {[%emt 0:01:31]} 44. Re5 {[%emt 0:02:03]} d4 {[%emt 0:03:53]} 45. Nf5 {[%emt 0:03:24]} Ng8 {[%emt 0:01:31]} 46. Qe4 {[%emt 0:01:58]} d3 {[%emt 0:07:33]} 47. Qd5+ {[%emt 0:01:45]} Qxd5 {[%emt 0:00:23]} 48. Rxd5 {[%emt 0:00:07] unterminated} Ke6 $18 {[%emt 0:01:50]} (48... Rb6 $16) 49. Ne3 {[%emt 0:00:08]} Nf6 {[%emt 0:03:48]} 50. Rxd3 {[%emt 0:01:00]} Ne4 {[%emt 0:00:23]} 51. Kg1 {[%emt 0:00:23]} h5 {[%emt 0:01:22]} 52. g3 {[%emt 0:02:43]} Rf6 {[%emt 0:01:07]} 53. Nd1 {[%emt 0:00:20]} Ke5 {[%emt 0:02:11] unterminated} 54. Kg2 {[%emt 0:04:06] unterminated} Rb6 {[%emt 0:02:36]} 55. Ne3 {[%emt 0:01:41]} Ke6 {[%emt 0:01:39]} 56. b4 {[%emt 0:01:41]} Rc6 {[%emt 0:01:09]} 57. f3 {[%emt 0:01:17]} Nf6 {[%emt 0:00:37]} 58. g4 {[%emt 0:00:44]} Rc8 {[%emt 0:01:31]} 59. Nf5 {[%emt 0:01:33]} Nd5 {[%emt 0:00:26]} 60. Rxd5 {normal} 1-0

[Event "-chT Youth Countries 2019"]
[Site "Wuerzburg"]
[Date "2019.10.06"]
[Round "7.5"]
[White "Moenster, Madita"]
[Black "Farokhi, Keyvan"]
[Result "0-1"]
[ECO "C89"]
[WhiteElo "1916"]
[BlackElo "2018"]
[Annotator "NA"]
[PlyCount "106"]
[EventDate "2019.10.02"]
[EventType "team-tourn"]
[EventRounds "7"]
[EventCountry "GER"]
[SourceTitle "playchess.com"]
[Source "ChessBase"]
[SourceQuality "1"]
[WhiteTeam "Niedersachsen"]
[BlackTeam "Schleswig-Holstein"]
[TimeControl "40/5400+30:1800+30"]

1. e4 {[%emt 0:00:00]} e5 {[%emt 0:00:00]} 2. Nf3 {[%emt 0:00:00]} Nc6 {[%emt 0:00:00]} 3. Bb5 {[%emt 0:00:00]} a6 {[%emt 0:00:00]} 4. Ba4 {[%emt 0:00:00]} Nf6 {[%emt 0:00:00]} 5. O-O {[%emt 0:00:02]} Be7 {[%emt 0:00:02]} 6. Re1 {[%emt 0:00:06]} b5 {[%emt 0:00:05]} 7. Bb3 {[%emt 0:00:06]} O-O {[%emt 0:00:04]} 8. c3 {[%emt 0:00:10]} d5 {[%emt 0:00:05]} 9. exd5 {[%emt 0:00:38]} Nxd5 {[%emt 0:00:02]} 10. Nxe5 {[%emt 0:01:04]} Nxe5 {[%emt 0:00:03]} 11. Rxe5 {[%emt 0:00:06]} c6 {[%emt 0:00:06]} 12. d3 {[%emt 0:01:46]} Bd6 {[%emt 0:00:06]} 13. Re1 {[%emt 0:00:48]} Bf5 {[%emt 0:00:07] unterminated} 14. Nd2 {[%emt 0:06:30] C89: Closed Ruy Lopez: Marshall Attack} Nf4 {[%emt 0:00:10] unterminated [#] unterminated} 15. Nf3 $146 {[%emt 0:18:08]} (15. Re3 $11) ({Predecessor:} 15. Ne4 Nxd3 16. Bg5 Qd7 17. Re3 Bxe4 18. Rxe4 Nxf2 19. Kxf2 Qf5+ 20. Kg1 Bxh2+ 21. Kxh2 Qxe4 {1-0 (36) Ivanchuk,V (2726)-Ding,L (2777) Huaian 2017}) 15... Nxd3 {[%emt 0:03:02] unterminated} 16. Re2 {[%emt 0:01:15] unterminated} Qc7 {[%emt 0:05:07] unterminated} 17. h3 {[%emt 0:09:41]} Rad8 {[%emt 0:01:30] unterminated} 18. Qf1 {[%emt 0:15:01] unterminated} Nxc1 {[%emt 0:04:02]} 19. Qxc1 {[%emt 0:01:50]} Bd3 {[%emt 0:01:01] unterminated} 20. Re1 {[%emt 0:04:25]} Bf4 {[%emt 0:00:09]} 21. Qd1 {[%emt 0:01:10] unterminated} c5 {[%emt 0:00:55]} 22. Bc2 {[%emt 0:01:52] unterminated} Bc4 {[%emt 0:15:35]} 23. Qb1 {[%emt 0:00:21]} g6 {[%emt 0:00:09]} 24. b3 {[%emt 0:04:43]} Bd5 {[%emt 0:00:07]} 25. Be4 {[%emt 0:00:48]} Be6 {[%emt 0:00:11] unterminated} 26. Qb2 {[%emt 0:01:17]} f5 {[%emt 0:00:36]} 27. Bc2 {[%emt 0:03:41] unterminated} ({White must play} 27. Bd3 $1 $15) 27... Bd5 {[%emt 0:01:02]} 28. Bd1 {[%emt 0:01:29] [#] unterminated} (28. Rad1 $17) 28... Qg7 $1 {[%emt 0:04:08]} 29. b4 {[%emt 0:14:25]} Bxf3 {[%emt 0:02:08]} 30. Bxf3 {[%emt 0:00:15]} Bd2 {[%emt 0:00:15] unterminated} 31. bxc5 {[%emt 0:08:59] unterminated} Qxc3 {[%emt 0:06:03]} 32. Qb3+ {[%emt 0:03:55]} Qxb3 {[%emt 0:00:12]} 33. axb3 {[%emt 0:00:04]} Bxe1 {[%emt 0:00:09]} 34. Rxe1 {[%emt 0:00:05]} Rc8 {[%emt 0:09:10]} 35. c6 {[%emt 0:01:11]} Rc7 {[%emt 0:00:48]} 36. Rd1 {[%emt 0:00:43]} a5 {[%emt 0:00:33]} 37. Rd4 {[%emt 0:00:56]} Ra8 {[%emt 0:00:29]} 38. Rd7 {[%emt 0:00:33]} Rxd7 {[%emt 0:00:20]} 39. cxd7 {[%emt 0:00:04] unterminated} Rd8 {[%emt 0:05:21]} 40. Bc6 {[%emt 0:00:08]} b4 {[%emt 0:00:05]} 41. Kf1 {[%emt 0:31:35]} Kf7 {[%emt 0:30:12]} 42. Ke2 {[%emt 0:00:00]} Ke7 {[%emt 0:00:00] unterminated} 43. Ke3 {[%emt 0:00:00]} Rxd7 {[%emt 0:00:00] unterminated} 44. h4 {[%emt 0:00:00] unterminated} Rd6 {[%emt 0:00:00]} 45. Bb5 {[%emt 0:00:00] unterminated} Kf6 {[%emt 0:00:00] unterminated} 46. f4 {[%emt 0:00:00]} h6 $19 {[%emt 0:00:00]} 47. Kf3 {[%emt 0:00:00]} Rd2 {[%emt 0:00:00]} 48. g4 {[%emt 0:00:00]} fxg4+ {[%emt 0:00:00]} 49. Kxg4 {[%emt 0:00:00]} Rb2 {[%emt 0:00:00]} 50. Ba4 {[%emt 0:00:30]} Ra2 {[%emt 0:00:00]} 51. Bb5 {[%emt 0:02:13]} Ra3 {[%emt 0:00:00]} 52. Bc4 {[%emt 0:00:25]} a4 {[%emt 0:00:00]} 53. bxa4 {[%emt 0:00:59]} h5# {normal} 0-1